Cogmind - Beta 11 *** ADVENTURER MODE // 2022.03.23 @ 18:46:51 Player: Patbot Result: Destroyed by S-27 Virus with Autogun Performance ------------- Evolutions (3) 1500 Regions Visited (7) 1400 Robots Destroyed (55) 275 Value Destroyed (1504) 1504 Prototype IDs (9) 180 Alien Tech Used (0) 0 Bonus (376) 376 TOTAL SCORE: 5235 Bonus ------- High Alert Combat Kills 176 Entered Garrisons 200 Cogmind --------- Core Integrity 0/700 Matter 104/300 Energy 99/100 System Corruption 14% Temperature Cool (0) Movement Core (50) Location -7/Garrison Parts ------- > --- POWER (1) -------- (None) > --- PROPULSION (3) --- (None) > --- UTILITY (6) ------ Machine Analyzer Improved Signal Interpreter Transport Network Coupler > --- WEAPON (3) ------- Axe > --- INVENTORY (5) ---- Improved Signal Interpreter Lightning Gun Plasma Cannon Datajack Peak State ------------ > --- POWER ------------ Heavy Ion Engine > --- PROPULSION ------- Gravmag System Gravmag System Gravmag System > --- UTILITY ---------- Machine Analyzer Visual Processing Unit Sensor Array Transport Network Coupler > --- WEAPON ----------- Improved EM Shotgun Improved EM Shotgun Datajack > --- INVENTORY -------- Gravmag System Field Recycling Unit Enhanced Autogun Mini Grenade Launcher [Rating: 30] Favorites ----------- Power Light Ion Engine Engine Light Ion Engine Power Core Light Nuclear Core Propulsion VTOL Module Leg Carbon-fiber Leg Wheel Wheel Hover Unit Gravmag System Flight Unit VTOL Module Utility Sensor Array Device Sensor Array Storage Small Storage Unit Processor Machine Analyzer Protection Improved Light Armor Plating Weapon Improved EM Shotgun Energy Gun Improved EM Shotgun Energy Cannon Light EM Pulse Cannon Ballistic Gun Enhanced Autogun Launcher Mini Grenade Launcher Special Weapon Mining Laser Slashing Weapon Axe Special Melee Weapon Datajack Build | -11 -10 -9 -8 -7 -7 -7 -7 ------- Run | Scr Mat Mat Mat Fac Was Fac Gar Slots Evolved 6 | . . 2 2 2 . . . Power . | . . . . . . . . Propulsion 1 | . . 1 . . . . . Utility 4 | . . 1 1 2 . . . Weapon 1 | . . . 1 . . . . Parts Attached 61 | 1 11 25 10 5 1 7 1 Power 9 | 1 2 3 . 1 1 1 . Engine 6 | 1 2 3 . . . . . Core 3 | . . . . 1 1 1 . Reactor . | . . . . . . . . Propulsion 19 | . 3 7 4 1 . 3 1 Treads . | . . . . . . . . Leg 1 | . . . . 1 . . . Wheel 5 | . . 5 . . . . . Hover 4 | . . . 4 . . . . Flight 9 | . 3 2 . . . 3 1 Utility 10 | . 2 4 3 1 . . . Device 4 | . 1 2 1 . . . . Storage 1 | . . 1 . . . . . Processor 4 | . 1 1 2 . . . . Hackware . | . . . . . . . . Protection 1 | . . . . 1 . . . Artifact . | . . . . . . . . Weapon 23 | . 4 11 3 2 . 3 . Energy Gun 6 | . 3 1 1 . . 1 . Energy Cannon 2 | . . 2 . . . . . Ballistic Gun 1 | . . . 1 . . . . Ballistic Cannon . | . . . . . . . . Launcher 6 | . . 4 . 1 . 1 . Special Weapon 4 | . 1 2 . 1 . . . Impact Weapon . | . . . . . . . . Slashing Weapon 1 | . . . . . . 1 . Piercing Weapon . | . . . . . . . . Special Melee Weapon 3 | . . 2 1 . . . . Unidentified Prototypes 1 | . . . . . 1 . . Corrupted Parts 1 | . . . . . 1 . . System Corruption 6 | . . . . . 6 . . Parts Lost 26 | . . 10 5 1 4 . 6 Power 4 | . . 2 . . 1 . 1 Propulsion 14 | . . 6 3 . 1 . 4 Utility 1 | . . . 1 . . . . Weapon 7 | . . 2 1 1 2 . 1 Highest Loss Streak 6 | . . 3 3 1 3 . 6 To Critical Strikes . | . . . . . . . . Average Slot Usage (%) 75 | . 72 83 90 61 47 45 61 Engine 8 | . 14 10 9 1 . . . Core 1 | . . . . 5 4 3 5 Wheel 6 | . . 14 5 . . . . Hover 2 | . . . 12 2 . . . Flight 9 | . 21 11 . . . 10 19 Device 7 | . 4 11 10 . . . . Processor 17 | . 5 16 25 23 23 23 23 Energy Gun 8 | . 22 4 10 5 . . . Ballistic Gun 1 | . . . 3 7 2 . . Launcher 2 | . . 5 . . 4 2 5 Special Weapon 4 | . 3 4 3 5 3 . . Special Melee Weapon 3 | . . 3 9 1 . . . Naked Turns . | . . . . . . . . Heaviest Build 20 | 3 9 13 16 20 20 9 9 Greatest Support 42 | 3 8 42 27 15 15 12 12 Greatest Overweight (x) 4 | . 2 2 1 1 4 2 1 Average Overweight (x) . | . . . . . . . . Largest Inventory Capacity 8 | 5 5 8 5 5 5 5 5 Average Capacity 5 | 5 5 5 5 5 5 5 5 Most Carried 5 | 1 5 5 5 5 5 5 5 Average Carried 3 | . 2 4 4 4 3 4 4 Final Capacity 5 | 5 5 5 5 5 5 5 5 Final Carried 5 | 1 3 5 5 3 4 5 4 Class Distribution -------------------- 32% | Mutant 27% | Sprinter 22% | Scavenger-Mutant 9% | Scout 3% | Scavenger-Sprinter Dominant Class ---------------- Sprinter | -10/Materials Scavenger-Mutant | -9/Materials Scout | -8/Materials Mutant | -7/Factory Mutant | -7/Waste Scavenger-Sprinter | -7/Factory Scavenger-Sprinter | -7/Garrison Resources | -11 -10 -9 -8 -7 -7 -7 -7 ----------- Run | Scr Mat Mat Mat Fac Was Fac Gar Matter Collected 1087 | 210 96 519 145 21 . 96 . Remotely . | . . . . . . . . Salvage Created 1610 | . 144 766 479 42 . 96 83 Parts 106 | . 15 52 24 2 . 8 5 Haulers Intercepted 6 | . . 3 3 . . . . Recyclers Shooed . | . . . . . . . . Parts Field Recycled . | . . . . . . . . Retrieved Matter . | . . . . . . . . Parts Self-Destructed . | . . . . . . . . Prevented . | . . . . . . . . Kills | -11 -10 -9 -8 -7 -7 -7 -7 ------- Run | Scr Mat Mat Mat Fac Was Fac Gar Combat Hostiles Destroyed 38 | . 6 19 6 1 . 4 2 Melee 6 | . . . . . . 4 2 Guns 12 | . 6 1 5 . . . . AOE 20 | . . 18 1 1 . . . Classes Destroyed 12 | . 3 8 . . . . 1 Worker 2 | . . 1 . 1 . . . Builder 1 | . . 1 . . . . . Tunneler 1 | . . 1 . . . . . Hauler 6 | . . 3 3 . . . . Recycler 1 | . . 1 . . . . . Mechanic 2 | . 1 1 . . . . . Watcher 4 | . 2 2 . . . . . Swarmer 10 | . 6 . . . . 4 . Grunt 14 | . . 11 3 . . . . Duelist 2 | . . 1 1 . . . . Sentry 10 | . . 7 2 1 . . . Hunter 2 | . . . . . . . 2 Best Kill Streak 6 | . 4 6 4 1 . 4 2 Combat Bots Only 5 | . 3 5 4 1 . 4 2 Max Kills in Single Turn 2 | . 1 2 2 1 . 1 1 Gunslinging 1 | . . . 1 . . . . Exploded 2 | . . 2 1 1 . . . Melee 1 | . . . . . . 1 1 Uniques/NPCs Destroyed . | . . . . . . . . Combat | -11 -10 -9 -8 -7 -7 -7 -7 -------- Run | Scr Mat Mat Mat Fac Was Fac Gar Damage Taken 2645 | . 162 668 610 156 310 165 574 Core 1114 | . 36 225 145 33 203 165 307 Absorbed by Shields . | . . . . . . . . Core Remaining (%) 75 | 100 85 43 73 . . . . Volleys Fired 124 | . 23 57 30 14 . . . Largest 2 | . 2 2 2 2 . . . Hottest 145 | . 115 145 145 61 . . . Shots Fired 160 | . 38 60 42 19 . 1 . Gun 92 | . 35 5 41 11 . . . Cannon 8 | . . 8 . . . . . Launcher 39 | . . 33 . 5 . 1 . Special 21 | . 3 14 1 3 . . . Kinetic 31 | . . . 20 11 . . . Thermal 53 | . 38 14 1 . . . . Explosive 39 | . . 33 . 5 . 1 . Electromagnetic 34 | . . 13 21 . . . . Robot Hit Streak 37 | . 3 35 37 19 . . . Robot Miss Streak 4 | . 4 1 1 1 . . . Penetration Max . | . . . . . . . . Secondary Targets 2 | . . . 2 . . . . Max Gunslinging Chain 1 | . . . 1 . . . . Shots Hit Robots 127 | . 13 37 50 15 . 7 5 Core Hits 88 | . 9 43 24 6 . 4 2 Critical Kills . | . . . . . . . . Critical Parts Destroyed . | . . . . . . . . Critical Strikes 3 | . 1 1 . . . . 1 Burn 1 | . 1 . . . . . . Corrupt 1 | . . 1 . . . . . Sever 1 | . . . . . . . 1 Melee Attacks 27 | . . 2 10 . . 10 5 Impact . | . . . . . . . . Slashing 15 | . . . . . . 10 5 Piercing . | . . . . . . . . Sneak Attacks 8 | . . 2 6 . . . . Combat Hostiles . | . . . . . . . . Follow-up Attacks . | . . . . . . . . Damage Inflicted 3781 | . 213 2004 849 273 . 256 186 Guns 1160 | . 213 105 703 139 . . . Cannons 191 | . . 191 . . . . . Explosions 1936 | . . 1708 122 106 . . . Melee 442 | . . . . . . 256 186 Ramming 28 | . . . . 28 . . . Kinetic 450 | . . . 311 139 . . . Thermal 415 | . 213 56 146 . . . . Explosive 1758 | . . 1652 . 106 . . . Electromagnetic 688 | . . 296 392 . . . . Impact . | . . . . . . . . Slashing 442 | . . . . . . 256 186 Piercing . | . . . . . . . . Highest Corruption 14 | . . 1 . . 14 14 14 Average Corruption 8 | . . 1 . . 7 14 14 Corruption Purged . | . . . . . . . . Corruption Blocked . | . . . . . . . . Effects 14 | . . . . . 8 3 3 Message Errors 2 | . . . . . 1 1 . Matter Fused 6 | . . . . . 3 1 2 Energy Discharges 1 | . . . . . 1 . . Misfires 1 | . . . . . . 1 . Misdirections 4 | . . . . . 3 . 1 Overload Shots . | . . . . . . . . Overflow Damage 53 | . . 17 . . . 7 29 Projectiles 6 | . . 6 . . . . . Explosions 11 | . . 11 . . . . . Melee 36 | . . . . . . 7 29 Knockbacks . | . . . . . . . . Impact . | . . . . . . . . Kinetic . | . . . . . . . . Secondary . | . . . . . . . . Self-Inflicted Damage 92 | . . 60 32 . . . . Shots 5 | . . 4 1 . . . . Rammed . | . . . . . . . . Targets Rammed 6 | . . . . 6 . . . Kicked 6 | . . . . 6 . . . Crushed . | . . . . . . . . Highest Temperature 350 | . 350 87 220 44 . 3 12 Average Temperature 60 | . 93 27 66 21 . 3 12 Received Heat Transfer 723 | . . 354 270 60 . . 39 Effects 1 | . 1 . . . . . . Shutdowns 1 | . 1 . . . . . . Siege Activations . | . . . . . . . . Robots Corrupted 1 | . . 1 . . . . . Combat Hostiles . | . . . . . . . . Parts Fried 4 | . . 4 . . . . . Impact Corruptions . | . . . . . . . . Robots Melted . | . . . . . . . . Combat Hostiles . | . . . . . . . . Parts Melted 1 | . 1 . . . . . . Heat Transferred 929 | . 629 50 250 . . . . Parts Sabotaged . | . . . . . . . . Parts Stolen . | . . . . . . . . Parts Stripped . | . . . . . . . . Power Chain Reactions 2 | . . 1 1 . . . . Missiles Intercepted . | . . . . . . . . Alert | -11 -10 -9 -8 -7 -7 -7 -7 ------- Run | Scr Mat Mat Mat Fac Was Fac Gar Peak Influence 901 | . 342 901 417 172 64 199 167 Initial 204 | . . 63 204 94 49 33 122 Average 310 | . 160 532 278 107 45 100 132 Maximum Alert Level 3 | . 1 3 2 . . . . Low Security (%) 44 | 100 65 21 . 100 100 100 100 Level 1 23 | . 34 1 92 . . . . Level 2 17 | . . 40 7 . . . . Level 3 14 | . . 36 . . . . . Level 4 . | . . . . . . . . Level 5 . | . . . . . . . . High Security . | . . . . . . . . Max Security . | . . . . . . . . Squads Dispatched 9 | . 1 3 3 2 . . . Investigation 2 | . 1 . 1 . . . . Extermination . | . . . . . . . . Reinforcement 3 | . . 1 . 2 . . . Assault 2 | . . 2 . . . . . Garrison 2 | . . . 2 . . . . Intercept . | . . . . . . . . Searches Triggered . | . . . . . . . . Construction Impeded . | . . . . . . . . Haulers Reinforced 1 | . . . . 1 . . . Active Scanning Responses . | . . . . . . . . Cargo Convoy Interrupts . | . . . . . . . . Stealth | -11 -10 -9 -8 -7 -7 -7 -7 --------- Run | Scr Mat Mat Mat Fac Was Fac Gar Distress Signals 5 | . 2 . 3 . . . . Communications Jammed . | . . . . . . . . Distress Signals . | . . . . . . . . Times Spotted 106 | . 15 40 17 3 5 8 18 Peak Tracking Total 19 | . 4 9 8 1 5 4 19 Tactical Retreats 11 | . 2 6 3 . . . . Traps | -11 -10 -9 -8 -7 -7 -7 -7 ------- Run | Scr Mat Mat Mat Fac Was Fac Gar Traps Triggered 5 | . 3 1 . 1 . . . Indirectly . | . . . . . . . . Trap Hack Attempts . | . . . . . . . . Triggered . | . . . . . . . . Disarmed . | . . . . . . . . Reprogrammed . | . . . . . . . . Reused . | . . . . . . . . Traps Extracted . | . . . . . . . . Installed . | . . . . . . . . Triggered . | . . . . . . . . Machines | -11 -10 -9 -8 -7 -7 -7 -7 ---------- Run | Scr Mat Mat Mat Fac Was Fac Gar Machines Disabled 1 | . . 1 . . . . . Max in Single Turn 1 | . . 1 . . . . . Machines Sabotaged . | . . . . . . . . Garrisons Compromised . | . . . . . . . . Overloaded Fab Kills . | . . . . . . . . Hacking | -11 -10 -9 -8 -7 -7 -7 -7 --------- Run | Scr Mat Mat Mat Fac Was Fac Gar Machines Accessed 25 | . 8 8 5 3 . 1 . Terminals 19 | . 8 6 3 2 . . . Fabricators . | . . . . . . . . Repair Stations . | . . . . . . . . Recycling Units 1 | . . . . 1 . . . Scanalyzers 3 | . . 2 1 . . . . Garrison Access 2 | . . . 1 . . 1 . Total Hacks 82 | . 25 36 14 4 . 3 . Successful 52 | . 16 26 6 1 . 3 . Failed 30 | . 9 10 8 3 . . . Catastrophic 3 | . 1 1 1 . . . . Database Lockouts . | . . . . . . . . Manual 32 | . 9 16 3 2 . 2 . Terminals 60 | . 25 26 6 3 . . . Fabricators . | . . . . . . . . Repair Stations . | . . . . . . . . Recycling Units 1 | . . . . 1 . . . Scanalyzers 14 | . . 10 4 . . . . Garrison Access 7 | . . . 4 . . 3 . Terminal Hacks 33 | . 16 16 1 . . . . Record 4 | . 2 2 . . . . . Prototype ID Bank 3 | . 2 1 . . . . . Level Access Points 1 | . 1 . . . . . . Branch Access Points 2 | . 1 1 . . . . . Machine Index 1 | . 1 . . . . . . Terminal Index 3 | . 2 1 . . . . . Alert Level 7 | . 2 4 1 . . . . Unreport Threat 3 | . . 3 . . . . . Locate Traps 1 | . 1 . . . . . . Security Status 1 | . 1 . . . . . . Transport Status 1 | . . 1 . . . . . Hauler Manifests 2 | . 1 1 . . . . . Registered Components 1 | . 1 . . . . . . Zone Layout 3 | . 1 2 . . . . . Fabricator Hacks . | . . . . . . . . Repair Station Hacks . | . . . . . . . . Recycling Unit Hacks 1 | . . . . 1 . . . Report Inventory 1 | . . . . 1 . . . Scanalyzer 14 | . . 10 4 . . . . Insert Component 7 | . . 5 2 . . . . Analyze 7 | . . 5 2 . . . . Garrison Access Hacks 3 | . . . 1 . . 2 . Unlock Access 1 | . . . . . . 1 . Coupler Status 2 | . . . 1 . . 1 . Unauthorized Hacks 1 | . . . . . . 1 . Terminals . | . . . . . . . . Fabricators . | . . . . . . . . Repair Stations . | . . . . . . . . Recycling Units . | . . . . . . . . Scanalyzers . | . . . . . . . . Garrison Access 1 | . . . . . . 1 . Reprogram 1 | . . . . . . 1 . Data Cores Recovered . | . . . . . . . . Used . | . . . . . . . . Hacking Detections 22 | . 8 6 5 2 . 1 . Full Trace Events 3 | . . . 3 . . . . Feedback Events . | . . . . . . . . Feedback Blocked . | . . . . . . . . Robot Schematics Acquired . | . . . . . . . . Robots Built . | . . . . . . . . Authchips . | . . . . . . . . Time . | . . . . . . . . Total Robot Build Rating . | . . . . . . . . Part Schematics Acquired 7 | . . 5 2 . . . . Parts Built . | . . . . . . . . Authchips . | . . . . . . . . Time . | . . . . . . . . Total Part Build Rating . | . . . . . . . . Parts Repaired . | . . . . . . . . Time . | . . . . . . . . Parts Recycled . | . . . . . . . . Recycled Matter . | . . . . . . . . Retrieved Matter . | . . . . . . . . Retrieved Components . | . . . . . . . . Parts Scanalyzed 7 | . . 5 2 . . . . Part Schematics Acquired 7 | . . 5 2 . . . . Parts Damaged 1 | . . 1 . . . . . Bothacking | -11 -10 -9 -8 -7 -7 -7 -7 ------------ Run | Scr Mat Mat Mat Fac Was Fac Gar Used RIF Installer . | . . . . . . . . Robots Hacked 6 | . . 1 4 1 . . . Non-combat 5 | . . 1 3 1 . . . Combat 1 | . . . 1 . . . . Robot Hacks Applied 11 | . . 2 8 1 . . . parse_system 4 | . . 1 3 . . . . no_distress 6 | . . 1 4 1 . . . check_alert 1 | . . . 1 . . . . Relay Couplers Released . | . . . . . . . . Fabnet Peak Effective % . | . . . . . . . . Robots Rewired . | . . . . . . . . Allies Hacked . | . . . . . . . . Hacks Repelled . | . . . . . . . . Allies | -11 -10 -9 -8 -7 -7 -7 -7 -------- Run | Scr Mat Mat Mat Fac Was Fac Gar Total Allies . | . . . . . . . . Largest Group . | . . . . . . . . Highest-Rated Group . | . . . . . . . . Highest-Rated Ally . | . . . . . . . . Total Orders . | . . . . . . . . Ally Attacks . | . . . . . . . . Total Damage . | . . . . . . . . Kills . | . . . . . . . . Allies Corrupted . | . . . . . . . . Allies Melted . | . . . . . . . . Intel | -11 -10 -9 -8 -7 -7 -7 -7 ------- Run | Scr Mat Mat Mat Fac Was Fac Gar Robot Analysis Total . | . . . . . . . . Derelict Logs Recovered . | . . . . . . . . Drone Launches . | . . . . . . . . Drone Recoveries . | . . . . . . . . Exploration | -11 -10 -9 -8 -7 -7 -7 -7 ------------- Run | Scr Mat Mat Mat Fac Was Fac Gar Turns Passed 2398 | 14 442 946 430 247 185 94 40 Spaces Moved 3189 | 23 741 1351 494 165 191 140 84 Core 255 | 23 43 7 . . 140 37 5 Treads . | . . . . . . . . Legs 148 | . . . . 97 51 . . Wheels 592 | . . 475 117 . . . . Hover 445 | . . . 377 68 . . . Flight 1749 | . 698 869 . . . 103 79 Fastest Speed 29 | 50 32 29 52 120 50 29 29 Average Speed 58 | 50 46 53 65 120 95 36 31 Slowest Speed 250 | 50 150 195 130 190 250 150 112 Overloaded Moves . | . . . . . . . . Propulsion Burnouts . | . . . . . . . . Robots Hopped 6 | . 3 3 . . . . . Cave-ins Triggered . | . . . . . . . . Exploration Rate (%) 36 | 4 80 61 31 5 76 3 30 Regions Visited 7 Branch Regions . Pre-discovered Areas . | . . . . . . . . Known Exits Taken 3 | . 1 . 1 . . 1 . Unknown Exits Taken 2 | 1 . 1 . . . . . Scrap Searched . | . . . . . . . . Spaces Dug 18 | . 3 13 . . . 2 . Terrain Destroyed 285 | . 3 231 7 37 . 7 . Melee 2 | . . . . . . 2 . Projectile 17 | . 3 14 . . . . . AOE 266 | . . 217 7 37 . 5 . Terrain Rammed . | . . . . . . . . Walls Destroyed . | . . . . . . . . Machines Disabled . | . . . . . . . . Actions | -11 -10 -9 -8 -7 -7 -7 -7 --------- Run | Scr Mat Mat Mat Fac Was Fac Gar Total 3512 | 25 789 1483 563 202 194 166 90 Wait 14 | . . 14 . . . . . Move 3171 | 22 734 1344 493 165 190 139 84 Hop 6 | . 3 3 . . . . . Pick Up 68 | 2 13 25 13 5 2 8 . Fast Attach . | . . . . . . . . Attach 45 | 1 8 15 8 4 1 7 1 Detach 2 | . . 1 . . . 1 . Swap 16 | . 3 10 2 1 . . . Drop 31 | . 5 12 7 5 1 1 . Fire 124 | . 23 57 30 14 . . . Melee 27 | . . 2 10 . . 10 5 Ram . | . . . . . . . . Kick 6 | . . . . 6 . . . Crush . | . . . . . . . . Escape Stasis . | . . . . . . . . Rewire 2 | . . . . 2 . . . Trap . | . . . . . . . . Miscellaneous . | . . . . . . . . Route ------- -11/Scrapyard -10/Materials (discovered 4 exits: *Mat x3 / *Min) -9/Materials (discovered 5 exits: *Mat / *Min x2 / *Sto x2) -8/Materials -7/Factory -7/Waste -7/Factory -7/Garrison History --------- Turn | Location | Event 6 | -11/Scrapyard | Discovered new exit (range 16) 15 | -11/Scrapyard | Entered Materials 192 | -10/Materials | Discovered new exit (range 12) 194 | -10/Materials | Discovered new exit (range 15) 302 | -10/Materials | Discovered new exit (range 11) 374 | -10/Materials | Identified exit to Mines 381 | -10/Materials | Identified exit to Materials 457 | -10/Materials | Entered another Materials area 457 | -9/Materials | Evolved 2 slots: Propulsion x1, Utility x1 459 | -9/Materials | Discovered new exit (range 13) 465 | -9/Materials | Build established: Sprinter 514 | -9/Materials | Discovered new exit (range 12) 604 | -9/Materials | Identified exit to Mines 604 | -9/Materials | Identified exit to Storage 657 | -9/Materials | Discovered new exit (range 5) 730 | -9/Materials | Lost 3 parts (1p2n) 857 | -9/Materials | First assault squad dispatched 914 | -9/Materials | Core integrity fell below 50% 1265 | -9/Materials | Build established: Scavenger-Mutant 1403 | -9/Materials | Entered another Materials area 1403 | -8/Materials | Evolved 2 slots: Utility x1, Weapon x1 1621 | -8/Materials | Lost 3 parts (2n1w) 1712 | -8/Materials | Garrison activated, responded to threat 1757 | -8/Materials | Discovered new exit (range 5) 1830 | -8/Materials | Identified exit to Factory 1833 | -8/Materials | Entered Factory 1833 | -7/Factory | Evolved 2 slots: Utility x2 2080 | -7/Factory | Sucked down chute 2080 | -7/Factory | Entered Waste 2095 | -7/Waste | Build established: Mutant 2095 | -7/Waste | EMP discharged 2133 | -7/Waste | Spotted C-40 Crusher 2146 | -7/Waste | Spotted C-40 Crusher 2159 | -7/Waste | Crushed by Compactor (1 part destroyed) 2178 | -7/Waste | Crushed by Compactor (1 part destroyed, 2 dropped) 2178 | -7/Waste | Spotted C-40 Crusher 2188 | -7/Waste | Spotted C-40 Crusher 2191 | -7/Waste | Crushed by Compactor (1 part destroyed) 2195 | -7/Waste | EMP discharged 2219 | -7/Waste | System corruption reached 10% 2222 | -7/Waste | Lost 3 parts (1n2w) 2226 | -7/Waste | Crushed by Compactor (1 part destroyed) 2238 | -7/Waste | Spotted C-40 Crusher 2253 | -7/Waste | Discovered new exit (range 16) 2260 | -7/Waste | Identified exit to Factory 2265 | -7/Waste | Entered Factory 2293 | -7/Factory | Core integrity fell below 50% 2357 | -7/Factory | Identified exit to Garrison 2359 | -7/Factory | Entered Garrison 2380 | -7/Garrison | Triggered checkpoint 2380 | -7/Garrison | Triggered checkpoint 2381 | -7/Garrison | Triggered checkpoint 2392 | -7/Garrison | Core integrity fell below 20% 2399 | -7/Garrison | Destroyed by S-27 Virus with Autogun Last Messages --------------- alarm sounds. 02381_ Penetrated by Slug. 02381_ C-30 ARC bursts open, deploying its payload. 02381_ S-27 Virus unfolds itself. 02381_ Beams of light sweep through the air. An alarm sounds. 02382_ H-55 Commando Gauss Rifle severed. 02382_ S-27 Virus destroyed. 02383_ VTOL Module destroyed. 02389_ Mni. Grenade Launcher destroyed. 02389_ Lgt. Nuclear Core destroyed. 02390_ Destroyed Lgt. Nuclear Core. 02390_ Penetrated by Slug. 02393_ H-55 Commando destroyed. 02393_ VTOL Module destroyed. 02394_ Penetrated by Slug. 02398_ System corrupted: Matter fused (-10). 02398_ H-55 Commando destroyed. 02398_ S-27 Virus destroyed. Map ----- +----------------------------------------------------+ | ?????????????????????????????????????????????????? | | ?????????????????????????????????????????????????? | | ?????????????????????????????????????????????????? | | #####????????????????????????????????????????????? | | #????????????????????????????????????????????? | | #????????????????????????????????????????????? | | #????????????????????????????????????????????? | | ## #????????????????????????????????????????????? | | ?# #????????????????????????????????????????????? | | ?# #????????????????????????????????????????????? | | ?# #????????????????????????????????????????????? | | ## #????????????????????????????????????????????? | | ########?????????????????????????????????????? | | ## #?????????????????????????????????????? | | ?# #?????????????????????????????????????? | | ?######## #?????????????????????????????????????? | | ????????# #?????????????????????????????????????? | | ????????# #?????????????????????????????????????? | | ????????# #?????????????????????????????????????? | | ????????# #?????????????????????????????????????? | | ????????# ######????????????????????????????????? | | ????????# ## ????????????????????????????????? | | ???????## ## ######?????????#????????????????? | | ???????# g s ######## #????????????????? | | ???? + g s[[%s [ #????????????????? | | ???????# s =%!%= @%[ #????????????????? | | ???????# ## ##s*=###########????????????????? | | ?????### ## ## ###????????????????????????? | | ?????# #????????????????????????? | | ?????# %= "#????????????????????????? | | ?????# = "%#????????????????????????? | | ?????# "#????????????????????????? | | ?????### ## ## ###????????????????????????? | | ???????# ## ## #??????????????????????????? | | ?????? ?????????????????????????? | | ????? ???????????????????????? | | ????#### ####???????????????????????? | | ???????######""""## ##??????????????????????????? | | ??????????????????# #???????????????????????????? | | ??????????????????# #???????????????????????????? | | ??????????????????? #???????????????????????????? | | ?????????????????????????????????????????????????? | | ?????????????????????????????????????????????????? | | ?????????????????????????????????????????????????? | | ?????????????????????????????????????????????????? | | ?????????????????????????????????????????????????? | | ?????????????????????????????????????????????????? | | ?????????????????????????????????????????????????? | | ?????????????????????????????????????????????????? | | ?????????????????????????????????????????????????? | +----------------------------------------------------+ Best States ------------- Heat Dissipation 34 Energy Generation 21 Energy Capacity 350 Matter Stores 300 Matter Capacity 300 Sight Range 18 Robot Scan Range 14 Terrain Scan Density 10 ECM Strength 1 Armor Coverage 150 Resistance: KI 20 Resistance: TH 20 Resistance: EX 20 Resistance: EM 20 Resistance: I 20 Resistance: S 20 Resistance: P 20 Evasion (%) 64 Offensive Hacking 10 Item Schematics ----------------- Huge Storage Unit | -9/Materials | Scanalyzed Field Recycling Unit | -9/Materials | Scanalyzed Mining Laser | -9/Materials | Scanalyzed Hvy. Ion Engine | -9/Materials | Scanalyzed Imp. EM Shotgun | -9/Materials | Scanalyzed Enh. Autogun | -8/Materials | Scanalyzed Imp. Signal Interpreter | -8/Materials | Scanalyzed Robot Schematics ------------------ None Fabricated ------------ Nothing Alien Tech Used ----------------- None Achievements -------------- Maybe Next Time I'll Detach My Launcher Remodeling Significant Disruption root@ Challenges ------------ None Game ------ Seed ChainBombScrap Manual? 0 Play Time 01:02:10 Cumulative 31.2 hours Start 2022.03.23 @ 17:42:15 End 2022.03.23 @ 18:46:51 Sessions 1 Manual Loads 0 Difficulty Adventurer Special Mode None Game No. 56 Rogue 53 Adventurer 3 Explorer 0 Win Type - Total 0 Types 0/0/0/0/0/0/0/0/0 Lore% 14 Gallery% 27 Achievement% 17 Wizard Run 0 Options --------- ASCII 0 Keyboard 0 Movement Arrows Keybinds 0 Fullscreen 1 Font 20/SmallcapsGlow Map View 50x50 Tactical HUD 1 Map Filters NONE Filters NONE Steam 1 RUN: d9a839a1-a521-4954-a2c5-32b76ab6fe6b